bitfinex/quotes_BTCUSD_20250813
["timestamp","ask_amount","ask_price","bid_price","bid_amount"]
[1755073940036,9.24653184,119600.0,119590.0,1.67733826]
[1755073940251,9.24653184,119600.0,119590.0,1.71913826]
[1755073941315,9.24653184,119600.0,119590.0,1.71113826]
[1755073941522,9.24653184,119600.0,119590.0,1.71313826]
[1755073941784,9.24653184,119600.0,119590.0,1.72113826]
[1755073942197,9.24653184,119600.0,119590.0,1.70444826]
[1755073945501,9.24653184,119600.0,119590.0,2.11288826]
[1755073945710,9.24653184,119600.0,119590.0,2.5604069]
[1755073945923,9.24653184,119600.0,119590.0,2.5694069]
[1755073946293,9.24653184,119600.0,119590.0,2.5674069]
[1755073946531,9.24653184,119600.0,119590.0,2.5704069]
[1755073947314,9.24653184,119600.0,119590.0,2.5654069]
[1755073947519,9.24653184,119600.0,119590.0,2.54688826]
[1755073947693,9.24653184,119600.0,119590.0,2.45276826]
[1755073949667,9.24653184,119600.0,119590.0,2.34864826]
[1755073950945,9.24653184,119600.0,119590.0,2.14844826]
[1755073952274,9.24653184,119600.0,119590.0,2.16513826]
[1755073953786,9.24653184,119600.0,119590.0,2.16524398]
[1755073955665,9.24653184,119600.0,119590.0,2.57360398]
[1755073959010,9.24653184,119600.0,119590.0,2.16524398]
[1755073961547,9.23818878,119600.0,119590.0,2.16524398]
[1755073962002,9.22984572,119600.0,119590.0,2.16524398]
[1755073962212,9.22854572,119600.0,119590.0,2.16394398]
[1755073962423,9.22020266,119600.0,119590.0,2.16394398]
[1755073962850,9.2118596,119600.0,119590.0,2.16394398]
[1755073963265,9.20351654,119600.0,119590.0,2.16394398]
[1755073963730,9.19517348,119600.0,119590.0,2.16394398]
[1755073965749,9.19517348,119600.0,119590.0,2.57230398]
[1755073966617,8.49648904,119600.0,119590.0,2.46822398]
[1755073966838,8.49648904,119600.0,119590.0,2.48793966]
[1755073967071,8.49648904,119600.0,119590.0,2.38385966]
[1755073967298,8.4898948,119600.0,119590.0,2.18365966]
[1755073967508,8.4898948,119600.0,119590.0,2.17365966]
[1755073967715,8.4898948,119600.0,119590.0,2.17246262]
[1755073967926,8.4898948,119600.0,119590.0,2.18346262]
[1755073968147,8.4898948,119600.0,119590.0,2.16494398]
[1755073968579,8.4898948,119600.0,119590.0,2.15794398]
[1755073968759,8.4898948,119600.0,119590.0,2.16394398]
[1755073970158,8.44766736,119600.0,119590.0,2.16394398]
[1755073971358,8.44962736,119600.0,119590.0,1.55663066]
[1755073971571,8.44962736,119600.0,119590.0,1.91718398]
[1755073972415,8.44962736,119600.0,119590.0,1.89218398]
[1755073972624,8.44962736,119600.0,119590.0,1.91718398]
[1755073973879,8.45270736,119600.0,119590.0,1.91718398]
[1755073974092,8.44962736,119600.0,119590.0,1.91718398]
[1755073975536,8.44962736,119600.0,119590.0,2.12534398]
[1755073975708,8.44962736,119600.0,119590.0,2.32550398]
[1755073975925,8.44962736,119600.0,119590.0,2.22142398]
[1755073976991,8.44962736,119600.0,119590.0,1.78442398]
[1755073977770,8.44962736,119600.0,119590.0,1.68034398]
[1755073979837,8.44962736,119600.0,119590.0,1.48018398]
[1755073981774,8.45262736,119600.0,119590.0,1.48018398]
[1755073982859,8.44962736,119600.0,119590.0,1.48018398]
[1755073983719,8.44766736,119600.0,119590.0,1.48215398]
[1755073983900,8.44766736,119600.0,119590.0,1.48539398]
[1755073984097,8.44978736,119600.0,119590.0,1.48539398]
[1755073984876,8.44698736,119600.0,119590.0,1.48539398]
[1755073985530,8.41735137,119600.0,119590.0,1.78963398]
[1755073985732,8.41735137,119600.0,119590.0,1.65891398]
[1755073985967,8.41735137,119600.0,119590.0,1.68026398]
[1755073986444,8.41735137,119600.0,119590.0,1.68223398]
[1755073986610,8.41035137,119600.0,119590.0,1.68547398]
[1755073988450,8.41035137,119600.0,119590.0,1.68223398]
[1755073988645,8.4003399,119600.0,119590.0,1.68223398]
[1755073988864,8.4003399,119600.0,119590.0,1.68026398]
[1755073989450,8.4003399,119600.0,119590.0,1.68223398]
[1755073989898,8.4003399,119600.0,119590.0,1.48207398]
[1755073990369,8.3982199,119600.0,119590.0,1.48531398]
[1755073991456,8.385716,119600.0,119590.0,1.48531398]
[1755073991896,8.386166,119600.0,119590.0,1.35791398]
[1755073992136,8.37751821,119600.0,119590.0,1.48531398]
[1755073992934,8.37326761,119600.0,119590.0,1.48531398]
[1755073994751,8.37326761,119600.0,119590.0,1.92231398]
[1755073995674,8.37326761,119600.0,119590.0,2.33063398]
[1755073997984,8.37326761,119600.0,119590.0,2.12247398]
[1755073998211,8.37281761,119600.0,119590.0,2.12231398]
[1755073998865,8.36280639,119600.0,119590.0,2.12231398]
[1755074005749,8.36280639,119600.0,119590.0,2.53063398]
[1755074008695,8.34278431,119600.0,119590.0,2.53063398]
[1755074008910,8.34278431,119600.0,119590.0,2.12231398]
[1755074012650,8.34476431,119600.0,119590.0,2.12231398]
[1755074014741,8.34278431,119600.0,119590.0,2.12231398]
[1755074015330,8.34066264,119600.0,119590.0,2.12231398]
[1755074015545,8.34066264,119600.0,119590.0,2.53063398]
[1755074017440,8.34264264,119600.0,119590.0,2.53063398]
[1755074017641,8.34264264,119600.0,119590.0,1.85583066]
[1755074017845,8.34587264,119600.0,119590.0,2.22162398]
[1755074019519,8.34264264,119600.0,119590.0,2.22162398]
[1755074019728,8.34264264,119600.0,119590.0,2.11754398]
[1755074021818,8.34264264,119600.0,119590.0,1.91738398]
[1755074025317,8.32261975,119600.0,119590.0,1.91738398]
[1755074025520,8.32261975,119600.0,119590.0,2.12554398]
[1755074025730,8.32261975,119600.0,119590.0,2.22162398]
[1755074027779,8.32261975,119600.0,119590.0,2.11754398]
[1755074029845,8.32261975,119600.0,119590.0,1.91738398]
[1755074035478,8.30259702,119600.0,119590.0,1.91738398]
[1755074035652,8.30259702,119600.0,119590.0,2.32570398]
[1755074037760,8.30259702,119600.0,119590.0,2.11754398]
[1755074039674,8.30259702,119600.0,119590.0,1.91945398]
[1755074039878,8.30259702,119600.0,119590.0,1.92247398]
[1755074041920,8.30179702,119600.0,119590.0,1.92247398]
[1755074042545,8.30109702,119600.0,119590.0,1.92247398]
[1755074043898,8.27847438,119600.0,119590.0,1.92247398]
[1755074044119,8.27847438,119600.0,119590.0,1.92236826]
[1755074045205,8.27847438,119600.0,119590.0,1.48536826]
[1755074045411,8.27649438,119600.0,119590.0,1.5038869]
[1755074045610,8.27649438,119600.0,119590.0,1.84354633]
[1755074045832,8.27649438,119600.0,119590.0,1.57987633]
[1755074046014,8.26569476,119600.0,119590.0,1.77987633]
[1755074046598,8.26569476,119600.0,119590.0,1.77387633]
[1755074046768,8.26569476,119600.0,119590.0,1.76287633]
[1755074046973,8.26569476,119600.0,119590.0,1.76987633]
[1755074047184,8.26569476,119600.0,119590.0,1.77487633]
[1755074047559,8.22934301,119600.0,119590.0,1.76987633]
[1755074047769,8.21264301,119600.0,119590.0,1.76987633]
[1755074047975,8.21264301,119600.0,119590.0,1.78187633]
[1755074050160,8.21264301,119600.0,119590.0,1.76402534]
[1755074050369,8.21264301,119600.0,119590.0,2.20102534]
[1755074052219,8.2049523,119600.0,119590.0,2.20102534]
[1755074054139,8.2049523,119600.0,119590.0,2.1825067]
[1755074055698,8.2049523,119600.0,119590.0,2.3826667]
[1755074057489,8.18493231,119600.0,119590.0,2.3826667]
[1755074057696,8.18493231,119600.0,119590.0,2.1825067]
[1755074057896,8.16823231,119600.0,119590.0,2.1825067]
[1755074065657,8.14821232,119600.0,119590.0,2.5908267]
[1755074068021,8.13151232,119600.0,119590.0,2.3826667]
[1755074069993,8.13151232,119600.0,119590.0,2.1825067]
[1755074072132,8.13151232,119600.0,119590.0,2.1419367]
[1755074072891,8.13367232,119600.0,119590.0,2.1419367]
[1755074073586,8.11365233,119600.0,119590.0,2.1419367]
[1755074074231,8.11365233,119600.0,119590.0,2.14204242]
[1755074074863,8.11269233,119600.0,119590.0,2.14204242]
[1755074075574,8.11269233,119600.0,119590.0,2.35020242]
[1755074075794,8.11269233,119600.0,119590.0,2.55036242]
[1755074076003,8.11269233,119600.0,119590.0,2.36230889]
[1755074076422,8.11269233,119600.0,119590.0,2.45014889]
[1755074076601,8.11053233,119600.0,119590.0,2.16214889]
[1755074077844,8.11053233,119600.0,119590.0,1.72514889]
[1755074078258,8.11053233,119600.0,119590.0,2.02442233]
[1755074081446,7.22196906,119600.0,119590.0,2.11226233]
[1755074081654,6.96776543,119600.0,119590.0,2.1976538]
[1755074081870,6.96780845,119600.0,119590.0,2.51547233]
[1755074082490,6.12445291,119600.0,119590.0,2.20419889]
[1755074082881,6.12445291,119600.0,119590.0,2.19719889]
[1755074083285,6.12445291,119600.0,119590.0,2.20519889]
[1755074083520,5.81782487,119600.0,119590.0,2.20519889]
[1755074084485,5.81782487,119600.0,119590.0,2.21819889]
[1755074085232,5.81071736,119600.0,119590.0,2.21819889]
[1755074085352,5.81067434,119600.0,119590.0,2.21819889]
[1755074085549,5.81067434,119600.0,119590.0,2.62647889]
[1755074086578,5.81067434,119600.0,119590.0,2.21819889]
[1755074088248,5.79397434,119600.0,119590.0,2.20819889]
[1755074093599,5.78867434,119600.0,119590.0,2.20819889]
[1755074095551,5.78867434,119600.0,119590.0,2.61639889]
[1755074095866,5.78677434,119600.0,119590.0,2.40831889]
[1755074096093,5.78297434,119600.0,119590.0,2.40831889]
[1755074096291,5.78297434,119600.0,119590.0,2.36456889]
[1755074098352,5.76627434,119600.0,119590.0,2.16444889]
[1755074098903,5.76627434,119600.0,119590.0,2.13944889]
[1755074099104,5.76627434,119600.0,119590.0,2.16444889]
[1755074099312,5.76132709,119600.0,119590.0,2.16444889]
[1755074099667,5.76132709,119600.0,119590.0,2.14434242]
[1755074099882,5.76137011,119600.0,119590.0,2.14434242]
[1755074100777,5.76349011,119600.0,119590.0,2.14434242]
[1755074102877,5.76349011,119600.0,119590.0,2.14132242]
[1755074105690,5.76349011,119600.0,119590.0,2.34144242]
[1755074106895,5.76665011,119600.0,119590.0,2.13937242]
[1755074107315,5.76665011,119600.0,119590.0,2.05153242]
[1755074108871,5.76665011,119600.0,119590.0,1.85141242]
[1755074109087,5.76665011,119600.0,119590.0,1.6132991]
[1755074109414,5.76665011,119600.0,119590.0,1.82641242]
[1755074109622,5.76665011,119600.0,119590.0,1.85141242]
[1755074110056,5.76665011,119600.0,119590.0,1.82641242]
[1755074112317,5.76665011,119600.0,119590.0,1.84651889]
[1755074112679,5.76349011,119600.0,119590.0,1.84651889]
[1755074115639,5.76665011,119600.0,119590.0,2.04631889]
[1755074116156,5.76665011,119600.0,119590.0,2.02621242]
[1755074117838,5.76665011,119600.0,119590.0,1.82609242]
[1755074119067,5.76659052,119600.0,119590.0,1.8259867]
[1755074124187,5.76659052,119600.0,119590.0,1.6986267]
[1755074124406,5.76659052,119600.0,119590.0,1.8259867]
[1755074125050,5.76338297,119600.0,119590.0,1.8129867]
[1755074125274,5.76653094,119600.0,119590.0,1.84609317]
[1755074125484,5.76653094,119600.0,119590.0,1.83809317]
[1755074125697,5.76125094,119600.0,119590.0,2.04334317]
[1755074125914,5.76125094,119600.0,119590.0,2.05134317]
[1755074126124,5.76125094,119600.0,119590.0,2.04334317]
[1755074126555,5.75487769,119600.0,119590.0,1.83722317]
[1755074126984,5.75487769,119600.0,119590.0,1.84922317]
[1755074127398,5.75516769,119600.0,119590.0,1.84922317]
[1755074127609,5.75516769,119600.0,119590.0,1.84619317]
[1755074132209,5.75427834,119600.0,119590.0,1.84619317]
[1755074132431,5.75427834,119600.0,119590.0,1.8260867]
[1755074133211,5.74737834,119600.0,119590.0,1.8260867]
[1755074133832,5.73737834,119600.0,119590.0,1.8260867]
[1755074135474,5.73737834,119600.0,119590.0,1.8239867]
[1755074135676,5.73737834,119600.0,119590.0,2.2322667]
[1755074137888,5.73737834,119600.0,119590.0,2.2372667]
[1755074138276,5.73737834,119600.0,119590.0,2.2322667]
[1755074138645,5.73737834,119600.0,119590.0,1.8239867]
[1755074139115,5.70785404,119600.0,119590.0,1.8239867]
[1755074139867,5.71107404,119600.0,119590.0,1.8239867]
[1755074140564,5.71107404,119600.0,119590.0,2.12326014]
[1755074140976,5.70785404,119600.0,119590.0,2.12326014]
[1755074142734,5.70709404,119600.0,119590.0,2.12326014]
[1755074144667,5.71031404,119600.0,119590.0,2.12326014]
[1755074145515,5.71031404,119600.0,119590.0,2.22734014]
[1755074145733,5.71031404,119600.0,119590.0,2.53154014]
[1755074147736,5.70709404,119600.0,119590.0,2.53154014]
[1755074148217,5.71031404,119600.0,119590.0,2.42742014]
[1755074149137,5.71020832,119600.0,119590.0,2.42742014]
[1755074150201,5.71020832,119600.0,119590.0,2.32334014]
[1755074151059,5.70873832,119600.0,119590.0,2.32334014]
[1755074151275,5.71195832,119600.0,119590.0,2.32334014]
[1755074152100,5.71195832,119600.0,119590.0,2.12322014]
[1755074152303,5.7119153,119600.0,119590.0,2.12322014]
[1755074155572,5.7119153,119600.0,119590.0,2.33138014]
[1755074155778,5.7119153,119600.0,119590.0,2.53154014]
[1755074155994,5.7119153,119600.0,119590.0,2.42746014]
[1755074156283,6.4402203,119600.0,119590.0,2.42746014]
[1755074156435,6.4370003,119600.0,119590.0,2.42746014]
[1755074157928,6.4370003,119600.0,119590.0,2.32338014]
[1755074158287,6.4402203,119600.0,119590.0,2.32338014]
[1755074159246,6.4370003,119600.0,119590.0,2.32338014]
[1755074161148,6.43704332,119600.0,119590.0,2.32338014]
[1755074161978,6.43704332,119600.0,119590.0,2.12322014]
[1755074164149,6.42491322,119600.0,119590.0,2.16433736]
[1755074164791,6.42491322,119600.0,119590.0,2.15233736]
[1755074165058,6.42491322,119600.0,119590.0,2.14533736]
[1755074165270,6.42491322,119600.0,119590.0,2.16233736]
[1755074165482,6.42801322,119600.0,119590.0,2.16233736]
[1755074165686,6.42801322,119600.0,119590.0,2.57065736]
[1755074165897,6.42491322,119600.0,119590.0,2.57065736]
[1755074166074,6.42491322,119600.0,119590.0,2.46657736]
[1755074166528,6.42381322,119600.0,119590.0,2.36249736]
[1755074166703,6.42241322,119600.0,119590.0,2.36249736]
[1755074166989,6.42241322,119600.0,119590.0,2.16233736]
[1755074167899,6.41551322,119600.0,119590.0,2.16233736]
[1755074168099,6.41391322,119600.0,119590.0,2.16233736]
[1755074168314,6.40701322,119600.0,119590.0,2.16233736]
[1755074168522,6.40411322,119600.0,119590.0,2.01001736]
[1755074168735,6.40721322,119600.0,119590.0,1.86306392]
[1755074168945,6.40491322,119600.0,119590.0,1.86306392]
[1755074169355,6.40391322,119600.0,119590.0,1.86306392]
[1755074171449,6.40391322,119600.0,119590.0,1.83806392]
[1755074171650,6.40081322,119600.0,119590.0,1.86306392]
[1755074171884,6.40081322,119600.0,119590.0,1.83806392]
[1755074172079,6.4007702,119600.0,119590.0,1.86306392]
[1755074172277,6.4007702,119600.0,119590.0,1.83806392]
[1755074172459,6.4007702,119600.0,119590.0,1.86306392]
[1755074173640,6.4007702,119600.0,119590.0,1.83806392]
[1755074173856,6.4007702,119600.0,119590.0,1.86306392]
[1755074174678,6.4007702,119600.0,119590.0,2.16233736]
[1755074175036,6.3996702,119600.0,119590.0,2.59933736]
[1755074175720,6.3987702,119600.0,119590.0,3.00765736]
[1755074176242,6.3977702,119600.0,119590.0,3.00765736]
[1755074176684,6.3977702,119600.0,119590.0,2.70838392]
[1755074177088,6.3977702,119600.0,119590.0,2.60430392]
[1755074178089,6.3977702,119600.0,119590.0,2.50022392]
[1755074178215,6.3977702,119600.0,119590.0,2.06322392]
[1755074178433,6.3977702,119600.0,119590.0,2.06841392]
[1755074178641,6.3977702,119600.0,119590.0,2.36768736]
[1755074179521,6.3957302,119600.0,119590.0,2.16752736]
[1755074179727,6.3957302,119600.0,119590.0,2.16460546]
[1755074180364,6.3957302,119600.0,119590.0,2.16752736]
[1755074181948,6.3947302,119600.0,119590.0,2.16752736]
[1755074182537,6.3938302,119600.0,119590.0,2.16752736]
[1755074183291,6.3930302,119600.0,119590.0,2.16752736]
[1755074184536,6.3934602,119600.0,119590.0,2.16752736]
[1755074185189,6.3924602,119600.0,119590.0,2.16752736]
[1755074185603,6.3924602,119600.0,119590.0,2.57584736]
[1755074186856,6.3924602,119600.0,119590.0,2.55827892]
[1755074187193,6.3924602,119600.0,119590.0,2.54158892]
[1755074188583,6.3914602,119600.0,119590.0,2.54158892]
[1755074188790,6.3914602,119600.0,119590.0,2.33342892]
[1755074189725,6.3810602,119600.0,119590.0,2.33342892]
[1755074190141,6.3808602,119600.0,119590.0,2.33342892]
[1755074190356,6.3800602,119600.0,119590.0,2.33342892]
[1755074191055,6.3800602,119600.0,119590.0,2.13326892]
[1755074191949,6.3800602,119600.0,119590.0,2.13011892]
[1755074192186,6.3753602,119600.0,119590.0,2.13011892]
[1755074192414,6.3737602,119600.0,119590.0,2.13011892]
[1755074195267,6.3729602,119600.0,119590.0,2.13011892]
[1755074195587,6.3729602,119600.0,119590.0,2.43435892]
[1755074195791,6.3722602,119600.0,119590.0,2.43435892]
[1755074196211,6.3722602,119600.0,119590.0,2.33027892]
[1755074198152,6.3722602,119600.0,119590.0,2.13306892]
[1755074202833,6.3478302,119600.0,119590.0,2.13306892]
[1755074203076,6.3478302,119600.0,119590.0,2.18995402]
[1755074203522,6.3478302,119600.0,119590.0,2.1715291]
[1755074204369,6.3474302,119600.0,119590.0,2.1715291]
[1755074205218,6.3234302,119600.0,119590.0,2.3715291]
[1755074205448,6.3234302,119600.0,119590.0,2.4192691]
[1755074205680,6.3234302,119600.0,119590.0,2.6194291]
[1755074205915,6.3234302,119600.0,119590.0,2.65011349]
[1755074206561,6.3213302,119600.0,119590.0,2.65011349]
[1755074206820,6.3213302,119600.0,119590.0,2.63911349]
[1755074207040,6.3213302,119600.0,119590.0,2.65111349]
[1755074207264,6.3213302,119600.0,119590.0,2.63442349]
[1755074207496,6.3213302,119600.0,119590.0,2.62842349]
[1755074207723,6.3213302,119600.0,119590.0,2.61642349]
[1755074207941,6.3213302,119600.0,119590.0,2.42826349]
[1755074208929,6.2973302,119600.0,119590.0,2.12899005]
[1755074209148,6.2973302,119600.0,119590.0,2.13599005]
[1755074210379,6.2973302,119600.0,119590.0,2.57299005]
[1755074210774,6.2967302,119600.0,119590.0,2.55899566]
[1755074212865,6.2967302,119600.0,119590.0,2.8582691]
[1755074213220,6.2967302,119600.0,119590.0,2.4212691]
[1755074213833,6.2967302,119600.0,119590.0,2.40116087]
[1755074214855,5.8687302,119600.0,119590.0,2.4212691]
[1755074215081,5.6667302,119600.0,119590.0,2.4212691]
[1755074215296,5.65856656,119600.0,119590.0,2.4212691]
[1755074215505,4.92686305,119600.0,119590.0,2.63525045]
[1755074215934,4.57089905,119600.0,119590.0,2.61625045]
[1755074216274,4.36491018,119600.0,119590.0,2.42909045]
[1755074216930,4.36491018,119600.0,119590.0,2.12981701]
[1755074217196,4.36491018,119600.0,119590.0,2.14650701]
[1755074217637,4.32319018,119600.0,119590.0,2.14650701]
[1755074217843,4.30380024,119600.0,119590.0,2.14068566]
[1755074219671,4.27980024,119600.0,119590.0,2.14068566]
[1755074220275,4.27980024,119600.0,119590.0,2.12057743]
[1755074225737,4.27980024,119600.0,119590.0,2.52877743]
[1755074226397,4.27980024,119600.0,119590.0,2.32069743]
[1755074226626,4.27980024,119600.0,119590.0,2.32055353]
[1755074227573,4.27980024,119600.0,119590.0,2.27943631]
[1755074227780,4.17880024,119600.0,119590.0,2.27943631]
[1755074228004,4.07780024,119600.0,119590.0,2.07931631]
[1755074228425,3.67380024,119600.0,119590.0,2.07931631]
[1755074228642,3.47180024,119600.0,119590.0,2.09942454]
[1755074229269,3.16880024,119600.0,119590.0,2.09942454]
[1755074229523,2.76480024,119600.0,119590.0,2.09942454]
[1755074230231,2.46180024,119600.0,119590.0,2.09942454]
[1755074230457,2.46180024,119600.0,119590.0,2.07931631]
[1755074230679,2.46150024,119600.0,119590.0,2.07931631]
[1755074234114,2.45571556,119600.0,119590.0,2.07931631]
[1755074235650,2.45571556,119600.0,119590.0,2.48751631]
[1755074236556,2.45571556,119600.0,119590.0,2.27943631]
[1755074237241,2.45571556,119600.0,119590.0,2.71643631]
[1755074238764,2.44895291,119600.0,119590.0,2.71643631]
[1755074239583,2.44895291,119600.0,119590.0,2.66869631]
[1755074240219,2.45109291,119600.0,119590.0,2.66869631]
[1755074240452,2.45109291,119600.0,119590.0,2.46857631]
[1755074244032,2.43109291,119600.0,119590.0,2.46857631]
[1755074245756,2.43109291,119600.0,119590.0,2.87677631]
[1755074246639,2.43109291,119600.0,119590.0,2.66869631]
[1755074248712,2.42895291,119600.0,119590.0,2.66869631]
[1755074250097,2.41963084,119600.0,119590.0,2.46857631]
[1755074250305,2.41963084,119600.0,119590.0,2.48868454]
[1755074250574,2.38780334,119600.0,119590.0,2.52980176]
[1755074250763,2.2151549,119600.0,119590.0,2.53900598]
[1755074250961,2.12821026,119600.0,119590.0,2.53900598]
[1755074251295,1.79412589,119600.0,119590.0,2.53900598]
[1755074251565,1.11573485,119600.0,119590.0,2.49788876]
[1755074251794,0.73139271,119600.0,119590.0,2.51680176]
[1755074252006,0.44137605,119600.0,119590.0,2.54180176]
[1755074252207,0.43868938,119600.0,119590.0,2.54780176]
[1755074252437,0.43678585,119600.0,119590.0,2.55780176]
[1755074252639,0.43432275,119600.0,119590.0,2.55780176]
[1755074252881,0.43432275,119600.0,119590.0,2.53380176]
[1755074253081,0.43432275,119600.0,119590.0,2.54480176]
[1755074254132,0.43432275,119600.0,119590.0,2.55980176]
[1755074254855,0.42524098,119600.0,119590.0,2.55980176]
[1755074255701,0.39550703,119600.0,119590.0,2.96800176]
[1755074257569,0.39550703,119600.0,119590.0,2.55980176]
[1755074257811,0.38549961,119600.0,119590.0,2.55980176]
[1755074258581,0.38549961,119600.0,119590.0,2.12280176]
[1755074258582,0.35403761,119600.0,119590.0,2.12280176]
[1755074259040,0.34297361,119600.0,119590.0,2.12280176]
[1755074261349,0.34297361,119600.0,119590.0,2.10269353]
[1755074262012,0.32295908,119600.0,119590.0,2.10269353]
[1755074263839,0.32295908,119600.0,119590.0,2.53969353]
[1755074264435,0.30565708,119600.0,119590.0,2.53969353]
[1755074265669,0.30565708,119600.0,119590.0,2.94789353]
[1755074268266,0.30565708,119600.0,119590.0,2.53969353]
[1755074269971,0.28564255,119600.0,119590.0,2.53969353]
[1755074270180,0.28564255,119600.0,119590.0,2.83673836]
[1755074270598,0.23211725,119600.0,119590.0,2.83673836]
[1755074272055,0.23211725,119600.0,119590.0,2.53969353]
[1755074272869,0.21949989,119600.0,119590.0,2.53969353]
[1755074273074,0.21363562,119600.0,119590.0,2.53969353]
[1755074273332,0.21094933,119600.0,119590.0,2.53969353]
[1755074273987,0.21094933,119600.0,119590.0,2.83673836]
[1755074275706,0.21094933,119600.0,119590.0,3.03681836]
[1755074275936,0.21094933,119600.0,119590.0,2.83673836]
[1755074278035,0.1909348,119600.0,119590.0,2.83673836]
[1755074278240,0.1909348,119600.0,119590.0,2.81173836]
[1755074278448,0.1904548,119600.0,119590.0,2.83673836]
[1755074278656,0.1752558,119600.0,119590.0,2.81173836]
[1755074278859,0.1752558,119600.0,119590.0,2.83673836]
[1755074280231,0.1701368,119600.0,119590.0,2.83673836]
[1755074280446,0.1234988,119600.0,119590.0,2.83673836]
[1755074281589,0.1199828,119600.0,119590.0,2.83673836]
[1755074283526,0.1142828,119600.0,119590.0,2.83673836]
[1755074285052,0.1035688,119600.0,119590.0,2.83673836]
[1755074285594,0.1035688,119600.0,119590.0,3.24489836]
[1755074285796,0.1035688,119600.0,119590.0,3.03681836]
[1755074286001,0.08355427,119600.0,119590.0,3.03681836]
[1755074287430,0.08355427,119600.0,119590.0,2.57481836]
[1755074287710,0.08355427,119600.0,119590.0,2.37473836]
[1755074292203,0.08355427,119600.0,119590.0,2.07769353]
[1755074292421,0.08355427,119600.0,119590.0,2.51469353]
[1755074293315,0.08355427,119600.0,119590.0,2.53480176]
[1755074293542,0.001,119630.0,119620.0,0.88734234]
[1755074293543,0.00396,119630.0,119620.0,0.88734234]
[1755074293802,0.06649285,119660.0,119650.0,0.43811332]
[1755074294019,0.05494016,119660.0,119650.0,6.42294657]
[1755074294261,0.05494016,119660.0,119650.0,6.42586707]
[1755074295176,0.05494016,119660.0,119650.0,6.43086707]
[1755074295618,0.05494016,119660.0,119650.0,6.83902707]
[1755074296246,0.06684771,119680.0,119670.0,0.43811332]
[1755074296557,0.12638771,119680.0,119670.0,6.08580657]
[1755074297703,0.05954,119680.0,119670.0,6.42780657]
[1755074298357,0.05954,119680.0,119670.0,6.43580657]
[1755074299491,0.05954,119680.0,119670.0,6.44428727]
[1755074300254,0.05954,119680.0,119670.0,6.46931027]
[1755074301722,0.71291374,119690.0,119670.0,6.46931027]
[1755074301941,0.71291374,119690.0,119680.0,1.47752425]
[1755074302159,0.71291374,119690.0,119680.0,1.92952425]
[1755074304155,0.71291374,119690.0,119680.0,1.93052425]
[1755074304486,0.71291374,119690.0,119680.0,1.93752425]
[1755074305180,0.71291374,119690.0,119680.0,2.27752425]
[1755074305597,0.71291374,119690.0,119680.0,2.68568425]
[1755074306496,0.0180389,119690.0,119680.0,2.45456425]
[1755074306709,0.0180389,119690.0,119680.0,2.58160425]
[1755074308501,0.0180389,119690.0,119680.0,2.47756425]
[1755074308953,0.69487484,119700.0,119690.0,0.41507442]
[1755074309138,0.69487484,119700.0,119690.0,0.72775717]
[1755074309386,0.69487484,119700.0,119690.0,1.07972717]
[1755074310153,0.69487484,119700.0,119690.0,1.08572717]
[1755074312673,0.69487484,119700.0,119690.0,0.95868717]
[1755074312873,1.38974968,119700.0,119690.0,1.08572717]
[1755074315415,1.38974968,119700.0,119690.0,1.42572717]
[1755074315635,1.38974968,119700.0,119690.0,1.83388717]
[1755074316685,1.38974968,119700.0,119690.0,1.72984717]
[1755074318765,1.38974968,119700.0,119690.0,1.62580717]
[1755074319167,1.38974968,119700.0,119690.0,1.28580717]
[1755074320638,1.38974968,119700.0,119690.0,1.08572717]
[1755074320836,0.025424,119710.0,119690.0,1.08572717]
[1755074321047,0.025424,119710.0,119700.0,0.20976325]
[1755074321263,1.41517368,119710.0,119700.0,0.66171325]
[1755074322542,1.41517368,119710.0,119700.0,1.00171325]
[1755074323304,0.025424,119710.0,119700.0,1.00171325]
[1755074323515,1.41517368,119710.0,119700.0,1.00171325]
[1755074323872,1.41517368,119710.0,119700.0,1.00771325]
[1755074324088,1.39014968,119710.0,119700.0,1.00771325]
[1755074325610,1.39014968,119710.0,119700.0,1.31183325]
[1755074329404,0.0004,119710.0,119700.0,1.20779325]
[1755074329614,1.39014968,119710.0,119700.0,1.20779325]
[1755074331291,1.47792968,119710.0,119700.0,1.20779325]
[1755074331623,1.39014968,119710.0,119700.0,1.20779325]
[1755074332781,0.0004,119710.0,119700.0,1.20779325]
[1755074332989,1.39014968,119710.0,119700.0,1.20779325]
[1755074333197,0.0004,119710.0,119700.0,1.20779325]
[1755074333420,1.39014968,119710.0,119700.0,1.00771325]
[1755074333629,1.39014968,119710.0,119700.0,1.01078325]
[1755074335507,1.39014968,119710.0,119700.0,1.31490325]
[1755074339474,1.39014968,119710.0,119700.0,1.01078325]
[1755074341388,1.47792968,119710.0,119700.0,1.01078325]
[1755074341594,1.47792968,119710.0,119700.0,1.01279325]
[1755074343961,0.78305484,119710.0,119700.0,1.01279325]
[1755074345061,0.78305484,119710.0,119700.0,1.03781725]
[1755074345748,0.78305484,119710.0,119700.0,1.44597725]
[1755074347373,0.78305484,119710.0,119700.0,1.23789725]
[1755074347996,0.78305484,119710.0,119700.0,1.03781725]
[1755074348414,0.78305484,119710.0,119700.0,1.04125725]
[1755074350231,0.77782484,119710.0,119700.0,1.04125725]
[1755074351301,0.08818,119720.0,119710.0,0.41311332]
[1755074351503,0.78305484,119720.0,119710.0,0.64303232]
[1755074351705,0.78305484,119720.0,119710.0,0.99495232]
[1755074352699,0.78305484,119720.0,119710.0,0.99995232]
[1755074353144,0.08818,119720.0,119710.0,0.99995232]
[1755074353372,0.78305484,119720.0,119710.0,0.99995232]
[1755074353601,0.78305484,119720.0,119710.0,1.00304232]
[1755074355042,0.78305484,119720.0,119710.0,1.34304232]
[1755074355689,0.78305484,119720.0,119710.0,1.75120232]
[1755074359360,0.78305484,119720.0,119710.0,1.54312232]
[1755074360006,0.78305484,119720.0,119710.0,1.34304232]
[1755074363350,0.78305484,119720.0,119710.0,1.34505232]
[1755074365561,0.78305484,119720.0,119710.0,1.64917232]
[1755074366374,0.78305484,119720.0,119710.0,1.54513232]
[1755074367415,0.78305484,119720.0,119710.0,1.34505232]
[1755074368118,0.38981384,119720.0,119710.0,1.34505232]
[1755074368328,0.47759384,119720.0,119710.0,1.34304232]
[1755074368539,0.47759384,119720.0,119710.0,1.33995232]
[1755074369031,0.47759384,119720.0,119710.0,1.21295232]
[1755074369240,0.47759384,119720.0,119710.0,1.34304232]
[1755074369553,0.47759384,119720.0,119710.0,1.21604232]
[1755074369980,0.47759384,119720.0,119710.0,1.34304232]
[1755074370634,0.47759384,119720.0,119710.0,1.34501232]
[1755074375547,0.47759384,119720.0,119710.0,1.64913232]
[1755074377938,0.47759384,119720.0,119710.0,1.34501232]
[1755074384855,0.47759384,119720.0,119710.0,1.00501232]
[1755074385594,0.47759384,119720.0,119710.0,1.55309232]
[1755074385804,0.47759384,119720.0,119710.0,1.75317232]
[1755074386018,0.47759384,119720.0,119710.0,1.64913232]
[1755074390128,0.47759384,119720.0,119710.0,1.34501232]
[1755074391581,0.47759384,119720.0,119710.0,1.34209332]
[1755074395534,0.47759384,119720.0,119710.0,1.44613332]
[1755074395721,0.47759384,119720.0,119710.0,1.75025332]
[1755074396316,0.47759384,119720.0,119710.0,1.75317232]